bitfinex/quotes_BTCUSD_20250219
["timestamp","ask_amount","ask_price","bid_price","bid_amount"]
[1739987757300,0.155248,96619.0,96618.0,0.0018512]
[1739987758047,0.155248,96619.0,96618.0,0.0038512]
[1739987758299,0.155248,96619.0,96618.0,0.0028512]
[1739987758471,0.155248,96619.0,96618.0,0.0048512]
[1739987760772,0.01621922,96625.0,96618.0,0.0048512]
[1739987760954,0.01621922,96625.0,96618.0,0.00635837]
[1739987761170,0.155247,96621.0,96618.0,0.00635837]
[1739987761406,0.01621922,96625.0,96618.0,0.0048512]
[1739987761634,0.155247,96620.0,96618.0,0.0028512]
[1739987761845,0.155247,96620.0,96618.0,0.0008512]
[1739987762068,0.01621922,96625.0,96618.0,0.0008512]
[1739987762495,0.155248,96619.0,96618.0,0.0008512]
[1739987763341,0.155248,96619.0,96618.0,0.0028512]
[1739987764240,0.155248,96619.0,96618.0,0.0048512]
[1739987764668,0.155248,96619.0,96618.0,0.0028512]
[1739987764784,0.1504256,96629.0,96618.0,0.0048512]
[1739987765028,0.155244,96622.0,96618.0,0.0048512]
[1739987765424,0.155246,96621.0,96618.0,0.0048512]
[1739987765631,0.155248,96619.0,96618.0,0.0048512]
[1739987765856,0.155248,96619.0,96618.0,0.0028512]
[1739987767075,0.155248,96619.0,96618.0,0.0008512]
[1739987767262,0.155248,96619.0,96618.0,0.0018512]
[1739987767537,0.1556736,96619.0,96618.0,0.0008512]
[1739987767741,0.1556736,96619.0,96618.0,0.0028512]
[1739987768052,0.1556736,96619.0,96618.0,0.0048512]
[1739987769471,0.0004256,96619.0,96618.0,0.0048512]
[1739987769926,0.0004256,96619.0,96618.0,0.00635837]
[1739987770135,0.0004256,96619.0,96618.0,0.0048512]
[1739987770341,0.0004256,96619.0,96618.0,0.00635837]
[1739987770601,0.0004256,96619.0,96618.0,0.10735485]
[1739987770806,0.0004256,96619.0,96618.0,0.10886202]
[1739987777333,0.1556736,96619.0,96618.0,0.00635837]
[1739987777529,0.0004256,96619.0,96618.0,0.00635837]
[1739987778426,0.0004256,96619.0,96618.0,0.10886202]
[1739987779741,0.0004256,96619.0,96618.0,0.26411202]
[1739987779942,0.0004256,96619.0,96618.0,0.38981202]
[1739987780968,0.0004256,96619.0,96618.0,0.69039815]
[1739987782642,0.0004256,96619.0,96618.0,0.704939]
[1739987782861,0.0004256,96619.0,96618.0,0.71541625]
[1739987783305,0.0004256,96619.0,96618.0,1.28906703]
[1739987783523,0.0004256,96619.0,96618.0,1.29306703]
[1739987783734,0.0004256,96629.0,96628.0,0.30097485]
[1739987783976,0.0004256,96629.0,96628.0,0.4864312]
[1739987784195,0.0004256,96629.0,96628.0,0.48780166]
[1739987784959,0.0014256,96629.0,96628.0,0.49480166]
[1739987786626,0.0024256,96629.0,96628.0,0.50180166]
[1739987787073,0.0024256,96629.0,96628.0,1.34578779]
[1739987787505,0.0024256,96629.0,96628.0,1.34624461]
[1739987802210,0.0024256,96629.0,96628.0,1.26329191]
[1739987802438,0.0024256,96629.0,96628.0,0.96231706]
[1739987803418,0.0014256,96629.0,96628.0,0.95531706]
[1739987803669,0.0024256,96629.0,96628.0,0.96231706]
[1739987803902,0.0024256,96629.0,96628.0,1.11055106]
[1739987804153,0.0034256,96629.0,96628.0,0.96231706]
[1739987804370,0.0024256,96629.0,96628.0,1.11055106]
[1739987804619,0.0034256,96629.0,96628.0,1.11755106]
[1739987804825,0.0034256,96629.0,96628.0,0.41891706]
[1739987805032,0.0024256,96629.0,96628.0,0.41191706]
[1739987805241,0.0024256,96629.0,96628.0,0.41891706]
[1739987805450,0.0034256,96629.0,96628.0,0.41891706]
[1739987806220,0.0034256,96629.0,96628.0,0.57415106]
[1739987808020,0.0034256,96629.0,96628.0,0.41891706]
[1739987808451,0.0034256,96629.0,96628.0,0.57415106]
[1739987811430,0.0034256,96629.0,96628.0,0.65185106]
[1739987816652,0.0034256,96629.0,96628.0,0.66639191]
[1739987819028,0.0034256,96629.0,96628.0,0.49661706]
[1739987819265,0.0034256,96629.0,96628.0,0.41891706]
[1739987820489,0.1586576,96629.0,96628.0,0.41891706]
[1739987820712,0.0034256,96629.0,96628.0,0.41891706]
[1739987821131,0.1586576,96629.0,96628.0,0.41891706]
[1739987821553,0.1586576,96629.0,96628.0,0.41708978]
[1739987821774,0.1586576,96629.0,96628.0,0.41884825]
[1739987822247,0.0034256,96629.0,96628.0,0.41884825]
[1739987822760,0.0034256,96629.0,96628.0,0.27349612]
[1739987823007,0.0024256,96629.0,96628.0,0.26649612]
[1739987823261,0.0014256,96629.0,96628.0,0.11126212]
[1739987823801,0.0014256,96629.0,96628.0,0.26549612]
[1739987824014,0.0014256,96629.0,96628.0,0.26649612]
[1739987824442,0.0024256,96629.0,96628.0,0.27349612]
[1739987824853,0.0024256,96629.0,96628.0,0.32129612]
[1739987827408,0.0024256,96629.0,96628.0,0.16606212]
[1739987828381,0.1576576,96629.0,96628.0,0.11826212]
[1739987828599,0.0024256,96629.0,96628.0,0.11826212]
[1739987830559,0.0024256,96629.0,96628.0,0.27349612]
[1739987831223,0.0024256,96629.0,96628.0,0.32339612]
[1739987831458,0.0024256,96629.0,96628.0,0.40499612]
[1739987832925,0.0024256,96629.0,96628.0,0.41953697]
[1739987834169,0.0024256,96629.0,96628.0,0.41253697]
[1739987834407,0.0014256,96629.0,96628.0,0.41253697]
[1739987834653,0.0024256,96629.0,96628.0,1.2635231]
[1739987834873,0.0014256,96629.0,96628.0,1.2565231]
[1739987835093,0.0014256,96629.0,96628.0,1.2635231]
[1739987835356,0.0014256,96629.0,96628.0,1.27370564]
[1739987836535,0.0014256,96629.0,96628.0,1.28157381]
[1739987837867,0.0014256,96629.0,96628.0,1.28157381]
[1739987839655,0.0014256,96629.0,96628.0,1.28757381]
[1739987839825,0.0004256,96629.0,96628.0,1.28757381]
[1739987840033,0.0004256,96629.0,96628.0,1.29457381]
[1739987841134,0.0004256,96629.0,96628.0,1.30157381]
[1739987841323,0.0004256,96629.0,96628.0,1.29457381]
[1739987841797,0.0004256,96629.0,96628.0,1.30157381]
[1739987853336,0.0004256,96629.0,96628.0,1.28157381]
[1739987854431,0.0004256,96629.0,96628.0,1.28901381]
[1739987860339,0.0004256,96629.0,96628.0,1.30901381]
[1739987860769,6e-07,96629.0,96628.0,1.30901381]
[1739987860940,0.15,96668.0,96632.0,0.41394]
[1739987861151,0.15,96668.0,96649.0,0.10250365]
[1739987861355,0.16020744,96668.0,96650.0,0.30058613]
[1739987861552,0.16020744,96668.0,96651.0,0.10250365]
[1739987861785,0.31537744,96668.0,96657.0,0.155186]
[1739987861987,0.31537744,96668.0,96658.0,0.25768965]
[1739987862281,0.31537744,96668.0,96658.0,0.10443193]
[1739987862492,0.01028414,96668.0,96658.0,0.10443193]
[1739987862929,0.16028414,96668.0,96658.0,0.10443193]
[1739987863550,0.16028414,96668.0,96658.0,0.10843193]
[1739987863785,0.155171,96667.0,96658.0,0.10843193]
[1739987864481,0.16028414,96668.0,96658.0,0.11143193]
[1739987864748,0.155172,96667.0,96658.0,0.10843193]
[1739987864962,0.155174,96666.0,96658.0,0.10843193]
[1739987865137,0.155172,96667.0,96658.0,0.11143193]
[1739987865376,0.155175,96666.0,96658.0,0.10443193]
[1739987865588,0.155173,96666.0,96658.0,0.10743193]
[1739987865807,0.155173,96666.0,96658.0,0.11143193]
[1739987866239,0.155173,96666.0,96658.0,0.10743193]
[1739987866650,0.155173,96666.0,96658.0,0.11143193]
[1739987866917,0.155173,96666.0,96658.0,0.10843193]
[1739987867082,0.305172,96667.0,96658.0,0.41201806]
[1739987867443,0.15,96667.0,96658.0,0.41201806]
[1739987867705,0.155179,96663.0,96658.0,0.41201806]
[1739987867935,0.155181,96661.0,96658.0,0.40901806]
[1739987868132,0.155184,96659.0,96658.0,0.40901806]
[1739987868358,0.155184,96659.0,96658.0,0.41201806]
[1739987868573,0.155183,96660.0,96658.0,0.40501806]
[1739987868682,0.155183,96660.0,96658.0,0.40901806]
[1739987868914,0.155183,96660.0,96658.0,0.41301806]
[1739987869116,0.155183,96660.0,96658.0,0.40901806]
[1739987869555,0.20691,96661.0,96658.0,0.41501806]
[1739987869774,0.155183,96660.0,96658.0,0.41501806]
[1739987869983,0.155183,96660.0,96658.0,0.40501806]
[1739987870199,0.155183,96660.0,96658.0,0.41601806]
[1739987870406,0.155184,96659.0,96658.0,0.41601806]
[1739987870623,0.155184,96659.0,96658.0,0.41101806]
[1739987870828,0.155184,96659.0,96658.0,0.41601806]
[1739987871044,0.155184,96660.0,96658.0,0.41686866]
[1739987871459,0.155184,96659.0,96658.0,0.41086866]
[1739987871663,0.155184,96659.0,96658.0,0.40586866]
[1739987871896,0.155184,96659.0,96658.0,0.41686866]
[1739987872348,0.155184,96660.0,96658.0,0.41686866]
[1739987872569,0.155184,96660.0,96658.0,0.41494038]
[1739987872789,0.155184,96660.0,96659.0,0.00192662]
[1739987873041,0.155184,96660.0,96659.0,0.10443027]
[1739987874606,0.155184,96660.0,96659.0,0.10943027]
[1739987875026,0.155184,96660.0,96659.0,0.11543027]
[1739987875696,0.155184,96660.0,96659.0,0.11521413]
[1739987877426,0.155184,96660.0,96659.0,0.11021413]
[1739987877872,0.155184,96660.0,96659.0,0.10721413]
[1739987878249,0.155184,96660.0,96659.0,0.11121413]
[1739987878650,0.155184,96660.0,96659.0,0.10421413]
[1739987878973,0.155183,96660.0,96659.0,0.10421413]
[1739987879455,0.155183,96660.0,96659.0,0.10828751]
[1739987880002,0.01028414,96668.0,96659.0,0.11328751]
[1739987880417,0.01028414,96668.0,96660.0,0.00192495]
[1739987880629,0.01028414,96668.0,96661.0,0.10250365]
[1739987880861,0.155179,96662.0,96661.0,0.10250365]
[1739987882098,0.155179,96662.0,96661.0,0.10750365]
[1739987883374,0.155179,96662.0,96661.0,0.11150365]
[1739987883600,0.155179,96662.0,96661.0,0.10750365]
[1739987883825,0.155179,96662.0,96661.0,0.11050365]
[1739987884738,0.155179,96662.0,96661.0,0.10550365]
[1739987884963,0.155179,96662.0,96661.0,0.10850365]
[1739987885431,0.155179,96662.0,96661.0,0.10550365]
[1739987886297,0.155179,96662.0,96661.0,0.10950365]
[1739987890439,0.155179,96662.0,96661.0,0.007]
[1739987902986,0.346379,96662.0,96661.0,0.007]
[1739987903213,0.596219,96662.0,96661.0,0.007]
[1739987903713,0.596219,96662.0,96661.0,0.003]
[1739987903943,0.596219,96662.0,96661.0,0.006]
[1739987904552,0.155183,96660.0,96659.0,0.0008508]
[1739987907302,0.305183,96660.0,96659.0,0.0008508]
[1739987908132,0.32139885,96660.0,96659.0,0.0008508]
[1739987910205,0.1912,96659.0,96621.0,0.0759]
[1739987910417,3.31143451,96660.0,96621.0,0.0759]
[1739987910418,0.155229,96631.0,96621.0,0.0759]
[1739987911085,0.17144722,96631.0,96621.0,0.0759]
[1739987911808,0.17144722,96631.0,96630.0,0.00819259]
[1739987912048,0.17149079,96631.0,96630.0,0.00819259]
[1739987912997,0.17149079,96631.0,96630.0,0.01419259]
[1739987913872,0.15527257,96631.0,96630.0,0.01419259]
[1739987914379,0.30527257,96631.0,96630.0,0.01419259]
[1739987916617,0.32149086,96631.0,96630.0,0.01419259]
[1739987919410,0.32149086,96631.0,96630.0,0.01504339]
[1739987923775,0.30527257,96631.0,96630.0,0.01504339]
[1739987925604,2.27092557,96631.0,96630.0,0.01504339]
[1739987925814,2.32708657,96631.0,96630.0,0.01504339]
[1739987926037,2.23918157,96631.0,96630.0,0.01504339]
[1739987926483,2.21333157,96631.0,96630.0,0.01504339]
[1739987927402,2.17591857,96631.0,96630.0,0.01504339]
[1739987928244,2.19213774,96631.0,96630.0,0.01504339]
[1739987928837,2.12194374,96631.0,96630.0,0.01504339]
[1739987929692,0.32149174,96631.0,96630.0,0.01504339]
[1739987930131,0.96192074,96631.0,96630.0,0.01504339]
[1739987933700,0.94570157,96631.0,96630.0,0.01504339]
[1739987934680,0.94570157,96631.0,96630.0,0.01004339]
[1739987934943,0.94570157,96631.0,96630.0,0.00404339]
[1739987935132,1.39311857,96631.0,96630.0,0.00604339]
[1739987935351,1.38978857,96631.0,96630.0,0.00604339]
[1739987936017,1.17002157,96631.0,96630.0,0.00604339]
[1739987938133,1.18624117,96631.0,96630.0,0.00604339]
[1739987940588,0.86033317,96631.0,96630.0,0.00604339]
[1739987941655,0.16626317,96631.0,96630.0,0.00604339]
[1739987941867,0.32149217,96631.0,96630.0,0.00604339]
[1739987942071,0.32149217,96631.0,96630.0,0.0077989]
[1739987942526,0.32149217,96631.0,96630.0,0.00604339]
[1739987943699,0.30527257,96631.0,96630.0,0.00604339]
[1739987947003,0.32149094,96631.0,96630.0,0.00604339]
[1739987953790,0.30527257,96631.0,96630.0,0.00604339]
[1739987956827,0.32149152,96631.0,96630.0,0.00604339]
[1739987963765,0.30527257,96631.0,96630.0,0.00604339]
[1739987967073,0.3214915,96631.0,96630.0,0.00604339]
[1739987973934,0.30527257,96631.0,96630.0,0.00604339]
[1739987974182,0.39995731,96631.0,96630.0,0.00604339]
[1739987974370,0.305247,96620.0,96619.0,0.0008512]
[1739987974994,3.001695,96620.0,96619.0,0.0008512]
[1739987975866,3.001695,96620.0,96619.0,0.0018512]
[1739987976775,3.001695,96620.0,96619.0,0.0038512]
[1739987976949,3.10702362,96620.0,96619.0,0.0038512]
[1739987977166,3.10702362,96620.0,96619.0,0.0008512]
[1739987977376,3.17928722,96620.0,96619.0,0.0008512]
[1739987977604,3.18028722,96620.0,96619.0,0.0008512]
[1739987978180,3.19650911,96620.0,96619.0,0.0008512]
[1739987978380,3.21736935,96620.0,96619.0,0.0008512]
[1739987978891,0.15,96598.0,96592.0,0.0755]
[1739987979136,0.02,96614.0,96588.0,0.049]
[1739987979137,0.155297,96589.0,96588.0,0.049]
[1739987979396,0.305297,96589.0,96588.0,0.049]
[1739987979666,0.32152202,96589.0,96588.0,0.049]
[1739987980139,0.32156556,96589.0,96588.0,0.049]
[1739987981015,0.33219737,96589.0,96588.0,0.049]
[1739987983722,0.31597235,96589.0,96588.0,0.049]
[1739987988331,0.33219742,96589.0,96588.0,0.049]
[1739987989751,0.33219742,96589.0,96588.0,0.0498512]
[1739987993656,0.31597235,96589.0,96588.0,0.0498512]
[1739987996922,0.33219747,96589.0,96588.0,0.0498512]
[1739988000590,0.17690047,96589.0,96588.0,0.0498512]
[1739988000840,4.354e-05,96589.0,96588.0,0.22845485]
[1739988001063,4.354e-05,96589.0,96588.0,0.38375285]
[1739988001327,4.354e-05,96589.0,96588.0,0.68433898]
[1739988001578,0.01031661,96599.0,96593.0,0.1305]
[1739988001817,0.00764264,96622.0,96588.0,0.55923898]
[1739988001818,0.01622302,96612.0,96597.0,0.0811]
[1739988002075,0.01056509,96599.0,96598.0,0.10250365]
[1739988002256,0.155273,96604.0,96598.0,0.18360365]
[1739988002466,0.155279,96601.0,96598.0,0.18360365]
[1739988002893,0.15,96602.0,96598.0,0.18360365]
[1739988003152,0.155281,96599.0,96598.0,0.18360365]
[1739988003628,0.15,96600.0,96598.0,0.18360365]
[1739988003842,0.30528,96600.0,96598.0,0.18360365]
[1739988004083,0.30528,96600.0,96598.0,0.18760365]
[1739988004472,0.30528,96600.0,96598.0,0.18360365]
[1739988004897,0.155281,96599.0,96598.0,0.18660365]
[1739988005116,0.15,96600.0,96598.0,0.18660365]
[1739988005453,0.15,96600.0,96598.0,0.18860365]
[1739988005674,0.15,96600.0,96598.0,0.18660365]
[1739988005926,0.155281,96599.0,96598.0,0.18660365]
[1739988006114,0.155281,96599.0,96598.0,0.18860365]
[1739988006324,0.155281,96599.0,96598.0,0.18660365]
[1739988006538,0.155281,96599.0,96598.0,0.0841]
[1739988006741,0.155281,96599.0,96598.0,0.0831]
[1739988007202,0.155281,96599.0,96598.0,0.0871]
[1739988007657,0.155281,96599.0,96598.0,0.006]
[1739988007875,0.305293,96591.0,96590.0,0.0828]
[1739988008089,0.305297,96589.0,96588.0,0.00091888]
[1739988009259,0.305297,96589.0,96588.0,0.00291888]
[1739988009490,0.15,96589.0,96588.0,0.00291888]
[1739988009712,0.15,96589.0,96588.0,0.18582253]
[1739988010168,0.15,96589.0,96588.0,0.18982253]
[1739988010394,0.0162245,96598.0,96589.0,0.0829]
[1739988010636,0.15,96592.0,96591.0,0.0798]
[1739988010888,0.305292,96592.0,96591.0,0.18230365]
[1739988011628,0.305292,96592.0,96591.0,0.0808]
[1739988012310,0.305292,96592.0,96591.0,0.001]
[1739988012555,0.32467894,96592.0,96591.0,0.001]
[1739988012979,0.32467894,96592.0,96586.0,0.00077108]
[1739988012980,0.1753,96587.0,96586.0,0.00077108]
[1739988013221,0.1753,96587.0,96556.0,0.0819]
[1739988013222,0.305318,96576.0,96556.0,0.0819]
[1739988013460,1.021362,96576.0,96575.0,0.00128762]
[1739988013710,1.36366394,96576.0,96575.0,0.00128762]
[1739988013953,1.21132494,96576.0,96575.0,0.00128762]
[1739988014177,1.02729994,96576.0,96575.0,0.00128762]
[1739988015489,1.007913,96576.0,96575.0,0.00128762]
[1739988015702,1.02899162,96576.0,96575.0,0.00128762]
[1739988015925,1.04522058,96576.0,96575.0,0.00128762]
[1739988016157,0.53415558,96576.0,96575.0,0.00128762]
[1739988017301,0.70167594,96576.0,96575.0,0.00128762]
[1739988017970,0.74287594,96576.0,96575.0,0.00128762]
[1739988018806,0.75031594,96576.0,96575.0,0.00128762]
[1739988019016,0.75031594,96576.0,96575.0,0.00228762]
[1739988019017,0.75631594,96576.0,96575.0,0.00228762]
[1739988019233,0.75331594,96576.0,96575.0,0.00128762]
[1739988019443,0.78631594,96576.0,96575.0,0.00228762]
[1739988019679,0.80566244,96576.0,96575.0,0.00228762]
[1739988019910,0.79966244,96576.0,96575.0,0.00228762]
[1739988020095,0.79966244,96576.0,96575.0,6.2e-07]
[1739988020374,0.305332,96567.0,96566.0,8.2e-07]
[1739988020591,0.42143227,96567.0,96566.0,8.2e-07]
[1739988021463,0.44077877,96567.0,96566.0,8.2e-07]
[1739988021675,0.44677877,96567.0,96566.0,8.2e-07]
[1739988021888,0.54928242,96567.0,96566.0,8.2e-07]
[1739988022109,0.56928242,96567.0,96566.0,8.2e-07]
[1739988022533,0.54928242,96567.0,96566.0,8.2e-07]
[1739988022719,0.46677877,96567.0,96566.0,8.2e-07]
[1739988023172,0.46139081,96567.0,96566.0,8.2e-07]
[1739988023624,0.34529054,96567.0,96566.0,8.2e-07]
[1739988024535,0.46139081,96567.0,96566.0,8.2e-07]
[1739988024746,0.58389446,96567.0,96566.0,8.2e-07]
[1739988025636,0.56454796,96567.0,96566.0,8.2e-07]
[1739988026063,0.56454796,96567.0,96553.0,0.0008508]
[1739988026064,0.305353,96554.0,96553.0,0.00057518]
[1739988026281,0.305377,96539.0,96538.0,0.0008508]
[1739988026722,0.305377,96539.0,96538.0,0.00232841]
[1739988026930,1.691976,96539.0,96538.0,0.0008508]
[1739988027147,1.69816406,96539.0,96538.0,0.0008508]
[1739988027577,1.69816406,96539.0,96538.0,0.0009816]
[1739988029412,1.71878503,96539.0,96538.0,0.0009816]
[1739988029646,1.72935223,96539.0,96538.0,0.0009816]
[1739988030309,1.73235223,96539.0,96538.0,0.0009816]
[1739988030769,1.73135223,96539.0,96538.0,0.0009816]
[1739988031202,1.70549123,96539.0,96538.0,0.0009816]
[1739988031409,1.60751523,96539.0,96538.0,0.0009816]
[1739988031839,1.60551523,96539.0,96538.0,0.0009816]
[1739988032055,1.60651523,96539.0,96538.0,0.0009816]
[1739988032473,1.62579876,96539.0,96538.0,0.0009816]
[1739988033305,1.62779876,96539.0,96538.0,0.0009816]
[1739988033961,1.62679876,96539.0,96538.0,0.0009816]
[1739988034617,1.62479876,96539.0,96538.0,0.0009816]
[1739988035480,1.60551523,96539.0,96538.0,0.0009816]
[1739988037383,1.58928117,96539.0,96538.0,0.0009816]
[1739988038129,1.59128117,96539.0,96538.0,0.0009816]
[1739988038367,1.69378482,96539.0,96538.0,0.0009816]
[1739988038615,1.69178482,96539.0,96538.0,0.0009816]
[1739988040509,1.70801965,96539.0,96538.0,0.0009816]
[1739988040977,1.610516,96539.0,96538.0,0.0009816]
[1739988041450,1.605516,96539.0,96538.0,0.0009816]
[1739988041910,1.607516,96539.0,96538.0,0.0009816]
[1739988042368,1.605516,96539.0,96538.0,0.0009816]
[1739988042617,1.606516,96539.0,96538.0,0.0009816]
[1739988043543,1.70901965,96539.0,96538.0,0.0009816]
[1739988043781,0.45630365,96539.0,96538.0,0.0009816]
[1739988044033,1.895313,96539.0,96538.0,0.0009816]
[1739988044278,0.15,96537.0,96522.0,0.0827508]
[1739988044515,0.305403,96523.0,96522.0,0.05779434]
[1739988044757,0.562015,96523.0,96522.0,0.05779434]
[1739988044993,0.439552,96523.0,96522.0,0.05779434]
[1739988045494,0.418139,96523.0,96522.0,0.05779434]
[1739988045752,0.305403,96523.0,96522.0,0.05779434]
[1739988046003,0.3266454,96523.0,96522.0,0.05779434]
[1739988046978,0.3306454,96523.0,96522.0,0.05779434]
[1739988047231,0.3286454,96523.0,96522.0,0.05779434]
[1739988047493,0.34488222,96523.0,96522.0,0.05779434]
[1739988047742,0.34288222,96523.0,96522.0,0.05779434]
[1739988048212,0.34288222,96523.0,96522.0,0.05822024]
[1739988058043,0.3266454,96523.0,96522.0,0.05822024]
[1739988059731,0.3274974,96523.0,96522.0,0.05822024]
[1739988060717,0.150852,96523.0,96522.0,0.05822024]
[1739988060916,0.306255,96523.0,96522.0,0.05822024]
[1739988061120,0.306255,96523.0,96522.0,0.05971728]
[1739988061331,0.306255,96523.0,96522.0,0.05822024]
[1739988066120,0.901346,96523.0,96522.0,0.00046944]
[1739988066318,1.179857,96523.0,96522.0,0.00046944]
[1739988066534,1.048247,96523.0,96522.0,0.00046944]
[1739988066733,1.03542,96523.0,96522.0,0.00046944]
[1739988066950,1.016102,96523.0,96522.0,0.00046944]
[1739988067658,1.017102,96523.0,96522.0,0.00046944]
[1739988067880,1.016102,96523.0,96522.0,0.00046944]
[1739988068305,1.017102,96523.0,96522.0,0.00046944]
[1739988068780,1.00263,96523.0,96522.0,0.00046944]
[1739988069414,1.00063,96523.0,96522.0,0.00046944]
[1739988069618,0.794314,96523.0,96522.0,0.00046944]
[1739988069857,0.150852,96523.0,96522.0,0.00046944]
[1739988070095,0.150852,96523.0,96522.0,0.12756944]
[1739988070312,0.150852,96523.0,96522.0,0.12906648]
[1739988070546,0.306255,96523.0,96522.0,0.12906648]
[1739988071031,0.306255,96523.0,96522.0,0.12756944]
[1739988072741,0.306255,96523.0,96522.0,0.12921619]
[1739988072939,0.306255,96523.0,96522.0,0.12756944]
[1739988074378,0.150852,96523.0,96522.0,0.12756944]
[1739988074576,0.306255,96523.0,96522.0,0.12756944]
[1739988074785,0.306255,96523.0,96522.0,0.12921619]
[1739988075227,0.306255,96523.0,96522.0,0.12756944]
[1739988075437,0.306255,96523.0,96522.0,0.04556944]
[1739988075648,0.306255,96523.0,96522.0,0.00046944]
[1739988075856,1.22209958,96523.0,96522.0,0.00046944]
[1739988076090,1.85798,96523.0,96522.0,0.00046944]
[1739988076297,3.142358,96523.0,96522.0,0.00046944]
[1739988076509,2.903298,96523.0,96522.0,0.00046944]
[1739988076727,2.904298,96523.0,96522.0,0.00046944]
[1739988077392,2.749759,96523.0,96522.0,0.00046944]
[1739988077611,2.746759,96523.0,96522.0,0.00046944]
[1739988077819,2.748759,96523.0,96522.0,0.00046944]
[1739988078025,2.747759,96523.0,96522.0,0.00046944]
[1739988078238,2.745759,96523.0,96522.0,0.00046944]
[1739988078447,2.7639969,96523.0,96522.0,0.00046944]
[1739988078664,0.42699655,96523.0,96522.0,0.00046944]
[1739988078871,3.02183655,96523.0,96522.0,0.00046944]
[1739988079083,2.80787555,96523.0,96522.0,0.00046944]
[1739988079298,2.5319079,96523.0,96522.0,0.00046944]
[1739988079501,2.5349079,96523.0,96522.0,0.00046944]
[1739988079996,2.5319079,96523.0,96522.0,0.00046944]
[1739988080418,2.5339079,96523.0,96522.0,0.00046944]
[1739988081735,2.4282999,96523.0,96522.0,0.00046944]
[1739988082256,2.64784805,96523.0,96522.0,0.00046944]
[1739988082716,2.64784805,96523.0,96522.0,4.4e-07]
[1739988082924,0.55152105,96523.0,96522.0,4.4e-07]
[1739988083134,0.54952105,96523.0,96522.0,4.4e-07]
[1739988083354,0.305435,96503.0,96502.0,0.0474]
[1739988083558,0.305435,96503.0,96502.0,0.04753071]
[1739988083811,0.305435,96503.0,96502.0,0.04905206]
[1739988084036,0.305435,96503.0,96502.0,0.04753071]
[1739988086696,0.958438,96503.0,96502.0,0.04753071]
[1739988086915,0.784458,96503.0,96502.0,0.04753071]
[1739988087133,0.80482793,96503.0,96502.0,0.04753071]
[1739988088302,0.8210676,96503.0,96502.0,0.04753071]
[1739988088544,0.6777646,96503.0,96502.0,0.04753071]
[1739988090076,0.6341396,96503.0,96502.0,0.04753071]
[1739988090353,0.5303096,96503.0,96502.0,0.04753071]
[1739988091089,0.4968896,96503.0,96502.0,0.04753071]
[1739988094197,0.48064993,96503.0,96502.0,0.04753071]
[1739988094393,0.48064993,96503.0,96502.0,0.04795671]
[1739988096240,0.43865893,96503.0,96502.0,0.04795671]
[1739988097248,0.45489902,96503.0,96502.0,0.04795671]
[1739988100105,0.34204502,96503.0,96502.0,0.04795671]
[1739988100303,1.84823202,96503.0,96502.0,0.04795671]
[1739988100727,1.65189202,96503.0,96502.0,0.04795671]
[1739988102093,1.49359202,96503.0,96502.0,0.04795671]
[1739988102274,1.45759202,96503.0,96502.0,0.04795671]
[1739988103777,1.44135193,96503.0,96502.0,0.04795671]
[1739988104177,1.25502293,96503.0,96502.0,0.04795671]
[1739988104384,1.09591493,96503.0,96502.0,0.04795671]
[1739988105793,1.06504493,96503.0,96502.0,0.04795671]
[1739988106050,0.63346193,96503.0,96502.0,0.04795671]
[1739988106889,0.64970202,96503.0,96502.0,0.04795671]
[1739988111561,0.34204502,96503.0,96502.0,0.04795671]
[1739988111783,0.64969202,96503.0,96502.0,0.04795671]
[1739988113803,0.63345193,96503.0,96502.0,0.04795671]
[1739988114021,0.305453,96492.0,96482.0,0.0785]
[1739988114283,2.928743,96492.0,96491.0,0.0009096]
[1739988114525,2.46495965,96492.0,96491.0,5.88e-05]
[1739988114764,2.33830465,96492.0,96491.0,5.88e-05]
[1739988117988,2.354548,96492.0,96491.0,5.88e-05]
[1739988119485,0.01824335,96492.0,96491.0,0.0774848]
[1739988119736,0.01824335,96492.0,96491.0,0.1244848]
[1739988119737,0.01624335,96492.0,96491.0,0.1244848]
[1739988119973,0.17369635,96492.0,96491.0,0.12601953]
[1739988120212,0.01924335,96492.0,96491.0,0.12601953]
[1739988120417,0.32469635,96492.0,96491.0,0.12601953]
[1739988120656,0.32169635,96492.0,96491.0,0.1244848]
[1739988122381,0.32169635,96492.0,96491.0,0.12601953]
[1739988122874,0.32169635,96492.0,96491.0,0.1244848]
[1739988123609,0.15,96493.0,96491.0,0.1244848]
[1739988123833,0.155453,96492.0,96491.0,0.1244848]
[1739988124076,0.155453,96492.0,96491.0,0.0474848]
[1739988124331,0.155453,96492.0,96491.0,0.0004848]
[1739988125251,1.301703,96492.0,96491.0,0.0004848]
[1739988125491,2.026048,96492.0,96491.0,0.0004848]
[1739988125732,3.028048,96492.0,96491.0,0.0004848]
[1739988125935,3.026143,96492.0,96491.0,0.0004848]
[1739988126218,2.973173,96492.0,96491.0,0.0004848]
[1739988126457,2.809054,96492.0,96491.0,0.0004848]
[1739988126709,3.00176711,96492.0,96491.0,0.0004848]
[1739988126953,2.97295765,96492.0,96491.0,0.0004848]
[1739988127190,2.98195765,96492.0,96491.0,0.0004848]
[1739988127480,2.97795765,96492.0,96491.0,0.0004848]
[1739988127950,2.98395765,96492.0,96491.0,0.0004848]
[1739988128197,3.00020177,96492.0,96491.0,0.0004848]
[1739988128443,2.98920177,96492.0,96491.0,0.0004848]
[1739988128690,2.93580177,96492.0,96491.0,0.0004848]
[1739988129073,2.93080177,96492.0,96491.0,0.0004848]
[1739988129332,2.93680177,96492.0,96491.0,0.0004848]
[1739988129817,2.93080177,96492.0,96491.0,0.0004848]
[1739988130074,2.92780177,96492.0,96491.0,0.0004848]
[1739988130332,2.93180177,96492.0,96491.0,0.0004848]
[1739988130759,2.93265277,96492.0,96491.0,0.0004848]
[1739988131008,2.6334458,96492.0,96491.0,0.0004848]
[1739988131260,2.7888988,96492.0,96491.0,0.0004848]
[1739988131511,2.78265277,96492.0,96491.0,0.0004848]
[1739988132252,2.77865277,96492.0,96491.0,0.0004848]
[1739988133165,2.92465277,96492.0,96491.0,0.0004848]
[1739988133404,2.93765277,96492.0,96491.0,0.0004848]
[1739988133892,2.93065277,96492.0,96491.0,0.0004848]
[1739988134102,2.93765277,96492.0,96491.0,0.0004848]
[1739988134546,2.93065277,96492.0,96491.0,0.0004848]
[1739988135021,2.94165277,96492.0,96491.0,0.0004848]
[1739988135219,2.93165277,96492.0,96491.0,0.0004848]
[1739988135592,2.93765277,96492.0,96491.0,0.0004848]
[1739988136627,0.305474,96479.0,96478.0,0.0008514]
[1739988136850,1.815569,96479.0,96478.0,0.00091022]
[1739988137054,2.487035,96479.0,96478.0,0.00091022]
[1739988137288,2.046543,96479.0,96478.0,0.00091022]
[1739988137495,2.06278928,96479.0,96478.0,0.00091022]